[Event "45th FIDE Womens Olympiad 2024"]
[Site "Budapest"]
[Date "2024.09.15"]
[Round "5.69"]
[White "Keinanen, Anastasia"]
[Black "Francisco Guecamburu, Candela Be"]
[Result "1/2-1/2"]
[ECO "C60"]
[WhiteElo "2212"]
[BlackElo "2294"]
[Annotator "TA"]
[PlyCount "76"]
[EventDate "2024.09.05"]
[EventType "team-tourn"]
[EventCountry "HUN"]
[SourceTitle "playchess.com"]
[Source "ChessBase"]
[SourceQuality "1"]
[WhiteTeam "Finland"]
[BlackTeam "Argentina"]
[WhiteTeamCountry "FIN"]
[BlackTeamCountry "ARG"]
[TimeControl "40/5400+30:1800+30"]

{[%evp 11,76,43,61,26,35,15,61,48,54,56,61,42,79,39,50,0,0,0,6,0,0,0,0,0,-26,-29,-13,-12,-18,-17,-6,-6,-8,0,123,0,1437,0,0,-39,-17,-69,-22,-126,-111,-127,-123,-89,-94,-96,-90,-83,-98,-95,-92,-86,-91,-80,-77,-126,-123,-78,-79,-58,-21,-115,-102]} 1. e4 e5 2. Nf3 Nc6 3. Bb5 Nge7 4. Nc3 Ng6 5. d4 exd4 6. Nxd4 Bc5 7. Nf5 O-O 8. Be3 Bxe3 (8... Bb4 $11) 9. Nxe3 $14 {White is slightly better.} d6 10. g3 Nge7 11. Bd3 {White is more active.} Kh8 12. Qh5 Ne5 13. f4 Nxd3+ 14. cxd3 c6 15. d4 b5 {[%cal Bb7b5,Bb5b4][%mdl 32]} 16. O-O b4 17. Ne2 f5 18. e5 dxe5 19. fxe5 Ba6 20. Rad1 $1 {[%cal Of1f2]} Qa5 (20... g6 $5 21. Qf3 Qa5 $14) 21. Rf2 Bxe2 22. Qxe2 Qa4 {[#]} (22... Qxa2 $11 23. Nc4 Qa6) 23. a3 Qxa3 $2 {[%mdl 8192]} 24. Re1 $2 (24. bxa3 $18 a5 25. Qd3 (25. axb4 axb4 26. d5 cxd5 $18)) 24... Qa2 25. Ref1 {[%cal Oe2c2]} Qe6 {[%cal Oc6c5]} 26. Ng2 (26. Qa6 $11) 26... Nd5 (26... Rfd8 $15 {is superior.} 27. Nf4 Qg8) 27. Qh5 (27. Qa6 $11) 27... a5 28. g4 {[#]} f4 {[%mdl 512]} 29. Nxf4 Nxf4 30. Rxf4 Rxf4 31. Rxf4 $17 {[%mdl 4096] Endgame. KQR-KQR} a4 {Hoping for ...a3.} 32. Qf5 Qxf5 33. gxf5 {KR-KR} a3 34. bxa3 bxa3 {...a2 would now be deadly.} 35. Rf1 Kg8 36. Kf2 a2 37. Ra1 Ra4 {[%cal Og8f7]} 38. Ke3 (38. Kf3 $11) 38... Kf7 {Weighted Error Value: White=0.51/Black=0.14 (very precise) .  Loses game:     	---       	Black=1      Missed win:     	White=1     	---        Mistake:       	White=4     	Black=3      Inaccurate:     	White=3     	Black=2      OK:         	White=7     	Black=14     Best:        	White=4     	---        Strong:       	White=1     	---} 1/2-1/2

[Event "45th FIDE Womens Olympiad 2024"]
[Site "Budapest"]
[Date "2024.09.15"]
[Round "5.70"]
[White "Campos, Maria Jose"]
[Black "Paasikangas, Johanna"]
[Result "1-0"]
[ECO "A13"]
[WhiteElo "2252"]
[BlackElo "2058"]
[Annotator "TA"]
[PlyCount "79"]
[EventDate "2024.09.05"]
[EventType "team-tourn"]
[EventCountry "HUN"]
[SourceTitle "playchess.com"]
[Source "ChessBase"]
[SourceQuality "1"]
[WhiteTeam "Argentina"]
[BlackTeam "Finland"]
[WhiteTeamCountry "ARG"]
[BlackTeamCountry "FIN"]
[TimeControl "40/5400+30:1800+30"]

{[%evp 14,79,2,7,26,0,12,8,0,0,4,6,38,0,12,0,0,1,29,54,76,91,234,231,230,227,229,222,226,214,268,187,198,154,220,232,477,458,459,487,491,481,496,491,458,392,421,405,414,362,438,436,370,337,437,431,427,433,483,481,635,599,693,696,753,715,6837,6616]} 1. c4 e6 2. g3 d5 3. Nf3 Nf6 4. Bg2 d4 5. O-O c5 6. e3 Nc6 7. exd4 cxd4 8. d3 Bc5 9. a3 a5 10. Bg5 h6 {The position is equal.} 11. Bxf6 Qxf6 12. Nbd2 Qe7 13. Re1 O-O 14. Ne4 Ba7 15. Rc1 f5 16. Ned2 {[%cal Be4d2,Bd2c4,Bc4b6][%mdl 32]} Qf6 17. c5 {White is more active.} e5 {[#] A mistake that costs the game.} (17... g5 $16 {was necessary.}) 18. b4 $1 $18 {[%mdl 512]} axb4 19. axb4 {[%cal Ba3b4,Bb4b5][%mdl 32]} Bb8 {[%cal Oc8e6]} 20. b5 Ne7 21. Nc4 Ng6 22. Nfd2 {Threatens to win with Nb6.} Qf7 23. Nb6 Ra5 (23... Ra3 $16 24. Ndc4 Rc3) 24. Nb3 $1 {A dynamic duo of knights.} Rxb5 {[#]} (24... Ra2 25. Nxd4 Rd8 (25... exd4 $2 {loses.} 26. Bd5 $18)) 25. Bd5 $1 Be6 {[#]} 26. Bxe6 ({Less strong is} 26. Nxd4 Bxd5 27. Nxb5 Bc6 $16) 26... Qxe6 27. Nxd4 Qe8 28. Nxb5 Qxb5 29. Qf3 e4 30. dxe4 f4 31. Qe2 Qe8 32. Qh5 Kh7 33. Rc3 {[%cal Bc1c3,Bc3d3,Bd3d6][%mdl 32]} Be5 34. Rd3 {White is clearly winning.} Rf7 35. Nc4 fxg3 36. hxg3 Bc7 37. Nd6 Bxd6 38. Rxd6 Ne5 {Hoping for ...Nf3+.} 39. f4 g6 40. Qxe5 {Weighted Error Value: White=0.13 (very precise) /Black=0.49.  Mistake:       	---       	Black=3      Inaccurate:     	White=2     	Black=3      OK:         	White=16    	Black=12     Best:        	White=1     	Black=1      Strong:       	White=1     	---        Brilliant:      	White=1     	---} 1-0

[Event "45th FIDE Womens Olympiad 2024"]
[Site "Budapest"]
[Date "2024.09.15"]
[Round "5.71"]
[White "Bederdin, Lilja"]
[Black "Borda Rodas, Anapaola S."]
[Result "0-1"]
[ECO "C54"]
[WhiteElo "2065"]
[BlackElo "2216"]
[Annotator "TA"]
[PlyCount "88"]
[EventDate "2024.09.05"]
[EventType "team-tourn"]
[EventCountry "HUN"]
[SourceTitle "playchess.com"]
[Source "ChessBase"]
[SourceQuality "1"]
[WhiteTeam "Finland"]
[BlackTeam "Argentina"]
[WhiteTeamCountry "FIN"]
[BlackTeamCountry "ARG"]
[TimeControl "40/5400+30:1800+30"]

{[%evp 14,88,20,21,18,33,32,23,31,25,39,0,0,-28,-18,-22,-17,-23,-29,-25,-16,-26,-21,-136,-107,-119,-113,-114,-115,-204,-186,-231,-141,-143,-150,-197,-78,-83,-15,-19,-23,-91,-41,-43,-45,-45,-50,-195,-191,-185,-118,-112,-104,-166,-143,-278,-258,-274,-274,-259,-235,-264,-263,-413,-227,-222,-206,-253,-261,-264,-264,-242,-219,-444,-435,-420,-395]} 1. e4 e5 2. Nf3 Nc6 3. Bc4 Bc5 4. c3 Nf6 5. d3 d6 6. O-O a6 7. Bb3 Ba7 8. Nbd2 h6 9. Re1 Nh7 10. Nf1 Qf6 {White has an edge.} 11. Ne3 Bxe3 12. fxe3 Bg4 13. Qe2 Ng5 14. Bd1 Nxf3+ 15. gxf3 Bd7 (15... Bh3 {looks sharper.} 16. b4 h5 17. a4 Ne7) 16. Kh1 $1 g5 $36 {[%mdl 2048] Black is more active.} 17. f4 O-O-O 18. d4 (18. f5 $1 $11) 18... gxf4 $17 {Black is more active.} 19. d5 Ne7 20. exf4 exf4 {Hoping for ...Ng6.} (20... Qh4 {is interesting.} 21. Bd2 Rhg8 22. Qh5 Qh3) 21. Qf2 (21. Qf3 $17) 21... Ng6 $19 22. Bh5 Kb8 23. Bxg6 Qxg6 24. Bxf4 Bg4 (24... Rde8 $1 $19 25. e5 Qh5) 25. Re3 $17 Rde8 (25... f5 $17 26. e5 dxe5 27. Bxe5 f4 28. Qxf4 Rhf8) 26. Rae1 Qh5 {Threatens to win with ...f5.} 27. Kg1 (27. Rg3 $11 {keeps the balance.}) 27... f6 (27... Rhg8 $17 28. Bg3 f5 29. exf5 (29. e5 $2 dxe5 30. Rxe5 Rxe5 $19) 29... Rxe3 30. Rxe3 Bxf5 (30... Qxf5 31. Qxf5 Bxf5 32. c4 $11)) 28. Rg3 $15 Rhg8 29. Ree3 {Dodges Bf3} Bh3 30. Rxg8 ({Better is} 30. b3 $15) 30... Rxg8+ $19 31. Bg3 {[#]} Qg5 ({Black should try} 31... Qe8 $1 $19 {aiming for ...h5.} 32. Re1 (32. Qxf6 $2 {too greedy.} Rf8 $19) 32... Rg4 33. Qxf6 Rxe4) 32. Kh1 $17 h5 33. c4 (33. Bf4 $17 Qg2+ 34. Qxg2 Bxg2+ 35. Kg1 Bxe4+ 36. Rg3 Bxd5 37. Rxg8+ Bxg8 38. a3) 33... Qg4 $19 34. Re1 {[#]} (34. Qe2 $17 {is a better defense.}) 34... h4 $1 {[%mdl 512]} 35. Bxh4 {[%cal Oh4g3] [#]} Bg2+ $1 36. Kg1 Bxe4+ 37. Bg3 f5 38. Qf1 (38. Qe3 $142) 38... Qg5 (38... Bc2 $142 {And now ...f4 would win.} 39. Rc1 f4 40. Rxc2 fxg3) 39. Qe2 {[#]} Bxd5 $1 {[%mdl 512]} 40. cxd5 (40. Qe7 Qxe7) 40... f4 41. Qd2 {[%cal Og1h1]} fxg3 42. Re8+ Ka7 $1 43. Qxg5 $2 (43. Qd4+ b6 44. Rxg8 gxh2+ (44... Qxg8 45. h3 $17) 45. Kxh2 Qxg8 46. Kh3) 43... gxh2+ ({Less strong is} 43... Rxg5 44. h4 Rh5 (44... Rxd5 45. Kg2 $11) 45. Re4 $11) 44. Kxh2 Rxg5 {Weighted Error Value: White=0.46/Black=0.26 (precise) .  Mistake:       	White=8     	Black=5      Inaccurate:     	White=2     	Black=1      OK:         	White=13    	Black=10     Best:        	White=6     	Black=7      Strong:       	White=1     	Black=2} 0-1

[Event "45th FIDE Womens Olympiad 2024"]
[Site "Budapest"]
[Date "2024.09.15"]
[Round "5.72"]
[White "Sarquis, Maria Belen"]
[Black "Puuska, Heini"]
[Result "1/2-1/2"]
[ECO "B55"]
[WhiteElo "2172"]
[BlackElo "1930"]
[Annotator "RC"]
[PlyCount "73"]
[EventDate "2024.09.05"]
[EventType "team-tourn"]
[EventCountry "HUN"]
[SourceTitle "playchess.com"]
[Source "ChessBase"]
[SourceQuality "1"]
[WhiteTeam "Argentina"]
[BlackTeam "Finland"]
[WhiteTeamCountry "ARG"]
[BlackTeamCountry "FIN"]
[TimeControl "40/5400+30:1800+30"]

1. e4 c5 2. Nf3 d6 3. d4 Nf6 4. Bd3 cxd4 5. Nxd4 g6 6. c4 Bg7 7. h3 O-O 8. Be3 Nc6 9. Nc3 e6 10. Rc1 d5 11. Nxc6 bxc6 12. e5 Nd7 13. f4 Qh4+ 14. Ke2 d4 15. Bxd4 Qxf4 16. Be4 Rb8 17. b3 c5 18. Rf1 Qg5 19. Be3 Qh5+ 20. Rf3 Bxe5 21. Bc6 Bxc3 22. Rxc3 Ne5 23. g4 Qh4 24. Bf4 Nxf3 25. Bxf3 e5 26. Bxe5 Rb6 27. Bd5 Re8 28. Re3 Qg5 29. Qa1 Bb7 30. Qc3 Bxd5 31. cxd5 f6 32. Bf4 Rxe3+ 33. Qxe3 Qxd5 34. Qe8+ Kg7 35. Qe7+ Kg8 36. Qe8+ Kg7 37. Qe7+ 1/2-1/2

[Event "45th FIDE Womens Olympiad 2024"]
[Site "Budapest"]
[Date "2024.09.15"]
[Round "5.73"]
[White "Wafa, Shrook"]
[Black "Linares Napoles, Oleiny"]
[Result "1/2-1/2"]
[ECO "B40"]
[WhiteElo "2137"]
[BlackElo "2201"]
[Annotator "TA"]
[PlyCount "80"]
[EventDate "2024.09.05"]
[EventType "team-tourn"]
[EventCountry "HUN"]
[SourceTitle "playchess.com"]
[Source "ChessBase"]
[SourceQuality "1"]
[WhiteTeam "Egypt"]
[BlackTeam "Cuba"]
[WhiteTeamCountry "EGY"]
[BlackTeamCountry "CUB"]
[TimeControl "40/5400+30:1800+30"]

{[%evp 9,80,30,40,20,39,18,33,25,35,22,45,8,16,-20,-14,-46,-23,-35,-33,-25,-31,-44,-16,-18,-6,-12,-18,-16,-2,-10,-4,-11,-8,-13,0,0,0,0,0,0,0,0,6,-16,-11,-14,-9,-21,-6,-15,0,-16,0,-1,-1,-1,-1,-8,0,0,0,0,0,0,0,0,0,0,0,0,0,0,0]} 1. e4 c5 2. Nf3 e6 3. g3 b6 4. Bg2 Bb7 5. Nc3 a6 6. O-O d6 7. d4 cxd4 8. Nxd4 {White is slightly better.} Be7 9. Qe2 Qc7 10. Rd1 Nf6 11. Bg5 {[#] Hoping for Bxf6.} O-O 12. e5 dxe5 13. Bxb7 Qxb7 14. Qxe5 Nc6 15. Qe2 Nxd4 16. Rxd4 {The position is equal.} Rfd8 17. Rad1 Rxd4 18. Rxd4 h6 19. Bxf6 Bxf6 20. Rd3 Qc6 21. Nd1 Rc8 22. c3 b5 23. Ne3 g6 24. Qd2 h5 {Prevents Ng4.} 25. Rd6 Qb7 26. Qd3 {[%cal Oe3d5]} Kg7 27. a3 Rc7 (27... Qa8 {simplifies} 28. Qd2 Rd8 29. Rxd8 Qxd8 30. Qxd8 Bxd8 31. c4 Kf8) 28. Qd1 Be5 29. Rd8 Bf6 {[%cal Be5f6,Bf6e7,Be7c5][%mdl 32]} 30. Rd3 Qe4 31. h4 Be7 32. Rd4 Qc6 33. Nc2 Bc5 34. Rd3 Qe4 35. Nd4 Qg4 36. Qe1 Bxd4 37. Rxd4 Qf5 {Against Qe5+} 38. Qd2 Rc5 39. Kg2 Rd5 40. b3 Qe5 {Weighted Error Value: White=0.07 (flawless) /Black=0.05 (flawless) .  Inaccurate:     	White=3     	Black=1      OK:         	White=13    	Black=14     Best:        	White=1     	Black=1} 1/2-1/2

[Event "45th FIDE Womens Olympiad 2024"]
[Site "Budapest"]
[Date "2024.09.15"]
[Round "5.74"]
[White "Arribas Robaina, Maritza"]
[Black "Wafa, Shahenda"]
[Result "1-0"]
[ECO "B52"]
[WhiteElo "2143"]
[BlackElo "2102"]
[Annotator "TA"]
[PlyCount "63"]
[EventDate "2024.09.05"]
[EventType "team-tourn"]
[EventCountry "HUN"]
[SourceTitle "playchess.com"]
[Source "ChessBase"]
[SourceQuality "1"]
[WhiteTeam "Cuba"]
[BlackTeam "Egypt"]
[WhiteTeamCountry "CUB"]
[BlackTeamCountry "EGY"]
[TimeControl "40/5400+30:1800+30"]

{[%evp 12,63,14,9,17,10,8,10,8,24,22,15,24,22,104,81,360,354,402,405,679,685,787,793,732,612,601,622,690,699,824,821,821,512,1026,1066,5604,5597,2430,958,1077,1047,962,816,1172,1145,1758,1611,1531,1508,2994,2819,29995,29996]} 1. e4 c5 2. Nf3 d6 3. Bb5+ Bd7 4. Bxd7+ Nxd7 5. c4 Ngf6 6. Nc3 e6 7. O-O a6 8. d4 cxd4 9. Qxd4 Qa5 {The position is equal.} 10. Bd2 Qc5 11. Qd3 Rc8 12. Rac1 {[%cal Oc3d5]} Be7 (12... Qc7 $11) 13. Nd5 $1 $16 Qc6 $2 {[%mdl 8192] [#]} (13... exd5 $2 {perishes.} 14. cxd5 O-O 15. Rxc5 Nxc5 16. Qb1 Ncxe4 17. Be3 $18) (13... Qa7 $16 {is a better defense.}) 14. Nd4 $1 $18 Qc5 {[#]} 15. Bb4 $1 Ne5 (15... exd5 $142 16. Bxc5 dxe4) 16. Qd1 Qa7 17. Nxe7 Rd8 18. Nf3 {Hoping for Nxe5.} Nxf3+ 19. Qxf3 Kxe7 20. e5 Nd7 21. Bxd6+ Ke8 {Black is weak on the dark squares} 22. c5 f6 (22... Nb8 $142 23. b4 Rg8) 23. Rfd1 {And now Qh5+ would win.} Rc8 24. Qh5+ g6 25. Qh4 (25. Qh6 $142 Kf7 26. exf6 Nxf6 27. Be5) 25... h5 26. exf6 {[%cal Of6f7] f7+! would kill now.} Kf7 27. b4 {[%cal Bb2b4,Bb4b5][%mdl 32]} a5 28. b5 g5 29. Qxg5 Rcg8 {Inhibits Qg7+.} 30. Qe3 {Strongly threatening Be7.} Rc8 31. Be7 {Intending Rd6 and mate.} Nb8 32. Rd6 {White took control after the opening.   Weighted Error Value: White=0.42/Black=1.14.  Loses game:     	---       	Black=1      Mistake:       	---       	Black=2      Inaccurate:     	---       	Black=1      OK:         	White=2     	Black=1      Best:        	White=1     	Black=1      Strong:       	White=3     	---} 1-0

[Event "45th FIDE Womens Olympiad 2024"]
[Site "Budapest"]
[Date "2024.09.15"]
[Round "5.75"]
[White "Romany, Joy"]
[Black "Miranda Llanes, Yerisbel"]
[Result "0-1"]
[ECO "E73"]
[WhiteElo "2012"]
[BlackElo "2294"]
[Annotator "TA"]
[PlyCount "70"]
[EventDate "2024.09.05"]
[EventType "team-tourn"]
[EventCountry "HUN"]
[SourceTitle "playchess.com"]
[Source "ChessBase"]
[SourceQuality "1"]
[WhiteTeam "Egypt"]
[BlackTeam "Cuba"]
[WhiteTeamCountry "EGY"]
[BlackTeamCountry "CUB"]
[TimeControl "40/5400+30:1800+30"]

{[%evp 17,69,62,55,-11,27,0,0,4,41,41,49,55,29,-23,-21,-32,-13,-81,-77,-64,-46,-53,-57,-67,-65,-61,-66,-83,-69,-119,-113,-112,-116,-126,0,0,0,20,51,61,335,343,760,0,0,-61,-65,-60,-60,-1893,-1386,-29997,-29998,-29999]} 1. d4 Nf6 2. c4 g6 3. Nc3 Bg7 4. e4 d6 5. Be2 O-O 6. Bg5 Na6 7. Qd2 e5 8. d5 Qe8 9. f3 Nh5 {[%cal Oh5f4]} 10. Bh6 (10. Bd1 $14) 10... f5 11. Bxg7 Kxg7 12. exf5 {The position is equal.} gxf5 13. Nh3 Qg6 14. O-O-O Bd7 {[#]} 15. g4 fxg4 $11 16. Rhg1 Kh8 (16... g3 $6 17. Ng5 $16) 17. Nf2 {[#]} (17. fxg4 $11 {keeps the balance.} Nf4 18. Nxf4 Rxf4 19. Rdf1) 17... Nf4 $1 $17 {Strongly threatening ...Nxe2+.} 18. Bf1 {[%cal Rf3g4]} Qh6 {Black is much more active.} (18... Nc5 {is more complex.} 19. b4 Na4 20. Nxa4 Bxa4 21. Re1 Qf7) 19. Nxg4 Bxg4 20. Rxg4 Nc5 21. Kb1 a5 22. Nb5 Rf7 23. h4 ({White should try} 23. Rg3 $15) 23... Qf6 24. Be2 a4 25. Rdg1 c6 (25... Qf5+ $17 26. Ka1 Raf8) 26. dxc6 $11 bxc6 27. Nxd6 Rd7 28. Ne4 Qf5 {[%mdl 8192] [#]} (28... Qe6 $14 29. Qc2 Nxe4 30. Qxe4 Rd4) 29. Qa5 $1 $18 (29. Rxf4 Rxd2 30. Rxf5 Nxe4 $16) 29... Rad8 (29... Rdd8 30. Rxf4 (30. Qxc5 Nxe2 31. Rg5 Qe6 $18) 30... Qxe4+ 31. Rxe4 (31. fxe4 Rxa5 32. Rf7 Rg8 $16) 31... Rxa5) 30. Qxc5 $2 (30. Rg5 $18 Qf8 31. Nxc5) 30... Nxe2 $11 31. Re1 (31. Rf1 $11 Rd1+ 32. Rxd1 Rxd1+ 33. Kc2 Nd4+ 34. Kxd1 Qxf3+ 35. Kd2 Qe2+ 36. Kc3 Qe1+ 37. Kd3 Qd1+ 38. Kc3 Qe1+ 39. Kd3 Qd1+ 40. Kc3 Qe1+) 31... Nd4 $1 $36 {[%mdl 2048] Black has good play.} 32. Rg5 Qf4 33. Nd2 {[%mdl 8192]} Nxf3 $19 ({Inferior is} 33... Nc2 34. Re4 $11 (34. Kxc2 {gets mated.} Qxd2+ 35. Kb1 Qxe1+ 36. Kc2 Qe2+ 37. Kc3 Qd2#) (34. Kxc2 {leads to mate.} Qxd2+ 35. Kb1 Qxe1+ 36. Kc2 Qe2+ 37. Kc3 Qd2#)) 34. Nxf3 Rd1+ 35. Kc2 Qc1# {Weighted Error Value: White=0.70/Black=0.31.  Loses game:     	White=1     	Black=1      Missed win:     	White=1     	---        Mistake:       	White=3     	Black=2      Inaccurate:     	White=2     	Black=3      OK:         	White=8     	Black=7      Best:        	White=1     	Black=3      Strong:       	White=1     	Black=2} 0-1

[Event "45th FIDE Womens Olympiad 2024"]
[Site "Budapest"]
[Date "2024.09.15"]
[Round "5.76"]
[White "Forgas Moreno, Yaniela"]
[Black "Allam, Yara"]
[Result "1-0"]
[ECO "B40"]
[WhiteElo "2203"]
[BlackElo "1920"]
[Annotator "TA"]
[PlyCount "53"]
[EventDate "2024.09.05"]
[EventType "team-tourn"]
[EventCountry "HUN"]
[SourceTitle "playchess.com"]
[Source "ChessBase"]
[SourceQuality "1"]
[WhiteTeam "Cuba"]
[BlackTeam "Egypt"]
[WhiteTeamCountry "CUB"]
[BlackTeamCountry "EGY"]
[TimeControl "40/5400+30:1800+30"]

{[%evp 17,53,0,13,0,0,0,0,13,1,0,2,-12,-14,-24,0,-1,25,19,26,32,298,295,329,329,326,343,337,343,395,403,404,406,438,420,524,483,465,462]} 1. e4 c5 2. Nf3 e6 3. Nc3 Nc6 4. d4 cxd4 5. Nxd4 Be7 6. Nxc6 bxc6 7. Bd3 d5 8. O-O Nf6 9. Qe2 Qc7 10. Kh1 O-O 11. f4 dxe4 12. Nxe4 {The position is equal.} Nxe4 13. Bxe4 Rb8 14. c3 c5 15. Be3 Bd7 {[%cal Bc8d7,Bd7f5,Bf5e6][%mdl 32]} 16. Rad1 {[%cal Oe4h7]} Rfd8 17. f5 exf5 18. Bf4 Qb6 {[%mdl 8192] [#] A mistake that costs the game.} 19. Bxb8 $18 Qxb8 20. Bxf5 Bxf5 21. Qxe7 Re8 22. Qxc5 Be6 23. b3 h6 24. c4 Qb7 25. Rd6 Qe4 26. Qc6 Qxc6 27. Rxc6 {Weighted Error Value: White=0.06 (flawless) /Black=0.39.  Loses game:     	---       	Black=1      Inaccurate:     	---       	Black=1      OK:         	White=8     	Black=5      Best:        	---       	Black=1} 1-0

[Event "45th FIDE Womens Olympiad 2024"]
[Site "Budapest"]
[Date "2024.09.15"]
[Round "5.77"]
[White "Theissl Pokorna, Regina"]
[Black "Wagener, Anna"]
[Result "1-0"]
[ECO "B22"]
[WhiteElo "2302"]
[BlackElo "2251"]
[Annotator "TA"]
[PlyCount "79"]
[EventDate "2024.09.05"]
[EventType "team-tourn"]
[EventCountry "HUN"]
[SourceTitle "playchess.com"]
[Source "ChessBase"]
[SourceQuality "1"]
[WhiteTeam "Austria"]
[BlackTeam "Luxembourg"]
[WhiteTeamCountry "AUT"]
[BlackTeamCountry "LUX"]
[TimeControl "40/5400+30:1800+30"]

{[%evp 14,79,32,27,39,30,35,39,91,28,26,21,39,22,56,54,48,52,68,77,68,91,72,65,60,38,43,45,45,47,50,60,108,125,131,127,202,142,138,134,157,143,167,166,163,173,178,166,171,168,170,179,227,227,227,197,556,517,564,559,552,584,591,584,556,552,881,851]} 1. e4 c5 2. c3 d5 3. exd5 Qxd5 4. d4 Nf6 5. Nf3 e6 6. Na3 {[%cal Bb1a3,Ba3b5,Bb5d4][%mdl 32]} Be7 7. Nb5 Na6 8. Be2 cxd4 9. Nbxd4 O-O 10. Bf4 Bd6 (10... Nc5 $14) 11. Bxd6 (11. Nxe6 $1 $16 {Hoping for Qxd5.} Bxf4 12. Nxf4) 11... Qxd6 $11 12. O-O Nc7 13. a4 Bd7 14. Nb5 Nxb5 15. axb5 Qc5 16. Qd4 Qxd4 17. Nxd4 e5 18. Nb3 {[%cal Bd4b3,Bb3d2,Bd2f3][%mdl 32]} b6 19. Rfd1 Be6 20. Nd2 Rfd8 21. Nf3 Rxd1+ 22. Rxd1 Re8 {[#]} (22... Bg4 $14 {might be stronger.}) 23. Ra1 $1 $16 (23. Nxe5 $2 {is the wrong capture.} Bb3 24. Bc4 Bxd1 $19) 23... Re7 24. Nxe5 Bg4 25. Bxg4 Rxe5 $18 {[%mdl 4096] Endgame. KRB-KRN} 26. Bf3 g5 27. Bc6 (27. Rxa7 $2 Re1#) 27... Re2 28. h3 (28. Rxa7 $2 Re1#) 28... Rxb2 29. Rxa7 Rc2 30. Rb7 Rxc3 31. Rxb6 g4 32. Ra6 Kg7 (32... Kf8 {is a better defense.} 33. Ba8 Kg7) 33. Ra4 gxh3 34. gxh3 {Strongly threatening Rb4.} Ng8 $2 (34... Rb3 35. Ra6 Rxh3) 35. Rb4 {[%cal Ob5b6] [#] And now b6! would win. White is clearly winning.} Ne7 36. Bg2 Rc8 37. b6 {[%cal Bb5b6,Bb6b7][%mdl 32]} Nf5 38. b7 Rb8 39. Rb6 h6 40. Ra6 {Weighted Error Value: White=0.07 (flawless) /Black=0.28 (precise) .  Mistake:       	White=1     	Black=5      Inaccurate:     	---       	Black=2      OK:         	White=18    	Black=12     Best:        	White=1     	---        Strong:       	White=1     	---} 1-0

[Event "45th FIDE Womens Olympiad 2024"]
[Site "Budapest"]
[Date "2024.09.15"]
[Round "5.78"]
[White "Steil-Antoni, Fiona"]
[Black "Newrkla, Katharina"]
[Result "1/2-1/2"]
[ECO "B22"]
[WhiteElo "2085"]
[BlackElo "2208"]
[Annotator "TA"]
[PlyCount "58"]
[EventDate "2024.09.05"]
[EventType "team-tourn"]
[EventCountry "HUN"]
[SourceTitle "playchess.com"]
[Source "ChessBase"]
[SourceQuality "1"]
[WhiteTeam "Luxembourg"]
[BlackTeam "Austria"]
[WhiteTeamCountry "LUX"]
[BlackTeamCountry "AUT"]
[TimeControl "40/5400+30:1800+30"]

{[%evp 10,58,0,0,0,0,0,0,0,-6,0,0,-4,-4,-9,-21,-10,-57,-57,-81,-69,-91,-42,-47,0,-17,-25,-2,-12,-22,25,18,21,0,0,0,0,0,0,0,0,0,0,0,0,0,0,0,0,0,0]} 1. e4 {[%cal Be2e4,Be4e5][%mdl 32]} c5 2. c3 Nf6 3. e5 Nd5 4. d4 cxd4 5. Qxd4 e6 6. Bd3 Nc6 7. Qe4 d6 8. Nf3 dxe5 9. Nxe5 Bd6 10. Nxc6 bxc6 11. O-O f5 12. Qe2 O-O 13. Bc2 (13. Na3 $1 $11) 13... Qc7 $15 14. h3 Kh8 15. Rd1 Bb7 ({Better is} 15... e5 $17 16. c4 Ba6) 16. c4 Nb4 (16... Ba6 $15 {might be stronger.}) 17. a3 Nxc2 18. Qxc2 c5 19. Nc3 Qc6 (19... Be5 $142) 20. f3 $11 Rae8 {The position is equal.} 21. Qa4 {[#] Black must now prevent Qxc6.} Qb6 22. Qb5 Qc7 23. Rxd6 Qxd6 24. Qxb7 {[%cal Oc1e3] Threatens to win with Be3!} Rb8 $1 25. Qxa7 Ra8 26. Qb7 {[#] Nb5 is the strong threat.} Rab8 $1 27. Qa7 {Strongly threatening Nb5.} Ra8 28. Qb7 {And now Nb5 would win.} Rab8 $1 29. Qa7 {Nb5 would now be deadly.} Ra8 {Weighted Error Value: White=0.08 (flawless) /Black=0.07 (flawless) .  Mistake:       	White=1     	Black=3      OK:         	White=8     	Black=9      Best:        	White=4     	Black=3      Strong:       	---       	Black=3} 1/2-1/2